fUST/lending_fUST_20260127
["ID","MTS","AMOUNT","RATE_DAILY","PERIOD"]
[403762388,1769523052166,-235.347846,0.0002,2]
[403762389,1769523052174,-348.394579,0.0002,2]
[403762390,1769523052183,-235.347846,0.0002,2]
[403762391,1769523052193,-348.394579,0.0002,2]
[403762393,1769523052202,-235.347846,0.0002,2]
[403762394,1769523052212,-348.394579,0.0002,2]
[403762395,1769523052221,-235.347846,0.0002,2]
[403762396,1769523052231,-16716.90217,0.00020015,7]
[403762397,1769523052242,-454.65002405,0.00020034,4]
[403762398,1769523052252,-454.65002405,0.00020034,4]
[403762399,1769523052262,-168.0,0.00020072,2]
[403762400,1769523052272,-500.0,0.000201,7]
[403762401,1769523052282,-250.0,0.000201,10]
[403762402,1769523052292,-168.0,0.00020115,2]
[403762404,1769523052301,-3616.34,0.00020141,2]
[403762405,1769523052311,-168.0,0.00020142,2]
[403762406,1769523052321,-750.000911,0.00020147,7]
[403762407,1769523052331,-168.0,0.00020162,2]
[403762408,1769523052340,-168.0,0.00020192,2]
[403762409,1769523052349,-250.0,0.000202,10]
[403762410,1769523052359,-454.65002405,0.00020223,4]
[403762411,1769523052368,-454.65002405,0.00020223,4]
[403762412,1769523052377,-199.0,0.00020283,2]
[403762413,1769523052386,-168.0,0.00020285,2]
[403762414,1769523052395,-250.0,0.000203,10]
[403762416,1769523052404,-257.089028,0.00020336,7]
[403762417,1769523052414,-168.0,0.00020375,2]
[403762418,1769523052423,-250.0,0.000204,10]
[403762419,1769523052433,-507.9828,0.00020411,5]
[403762420,1769523052442,-337.3944,0.00020411,5]
[403762421,1769523052452,-507.9828,0.00020411,5]
[403762422,1769523052462,-454.65002405,0.00020412,4]
[403762423,1769523052472,-450.04896599,0.00020412,4]
[403762424,1769523052483,-166.045506,0.00020412,7]
[403762425,1769523052492,-168.0,0.00020422,2]
[403762426,1769523052501,-638.2880588,0.00020432,2]
[403762428,1769523052511,-419.3303856,0.0002044,2]
[403762429,1769523052520,-199.0,0.00020448,2]
[403762430,1769523052529,-256.12601545,0.00020466,3]
[403762431,1769523052538,-250.0,0.000205,10]
[403762432,1769523052548,-310.678194,0.00020548,2]
[403762433,1769523052557,-1000.0,0.00020578,2]
[403762434,1769523052567,-492.0,0.00020578,2]
[403762435,1769523052576,-250.0,0.000206,10]
[403762436,1769523052585,-454.65002405,0.00020601,4]
[403762437,1769523052594,-1390.90423128,0.0002061,2]
[403762438,1769523052603,-4018.910497,0.00020616,7]
[403762440,1769523052612,-232.61,0.0002062,2]
[403762441,1769523052621,-7403.79919086,0.000207,2]
[403762443,1769523052754,-274.66080914,0.000207,2]
[403762444,1769523052763,-250.0,0.000207,10]
[403762445,1769523052773,-168.0,0.00020714,2]
[403762446,1769523052783,-6120.42475743,0.00020722,2]
[403762448,1769523052878,-270.0455652,0.00016223,2]
[403762449,1769523052888,-206.80518095,0.00016223,2]
[403762450,1769523052898,-23.14925385,0.00016223,2]
[403762452,1769523052909,-256.88799727,0.00016223,2]
[403762453,1769523052919,-290.39862941,0.00016223,2]
[403762454,1769523052928,-356.10404976,0.00017041,2]
[403762455,1769523052938,-418.0,0.00018499,2]
[403762456,1769523052948,-3770.11780221,0.00020722,2]
[403762457,1769523052959,-757.38290705,0.00020722,2]
[403762458,1769523052969,-789.365747,0.00020722,2]
[403762459,1769523052979,-789.365747,0.00020722,2]
[403762460,1769523052990,-789.365747,0.00020722,2]
[403762461,1769523052999,-789.365747,0.00020722,2]
[403762463,1769523053009,-211.191352,0.00020722,2]
[403762464,1769523053018,-348.394579,0.00020722,2]
[403762465,1769523053029,-235.347846,0.00020722,2]
[403762466,1769523053041,-348.394579,0.00020722,2]
[403762467,1769523053051,-235.347846,0.00020722,2]
[403762468,1769523053060,-348.394579,0.00020722,2]
[403762469,1769523053071,-235.347846,0.00020722,2]
[403762470,1769523053080,-348.394579,0.00020722,2]
[403762471,1769523053090,-235.347846,0.00020722,2]
[403762472,1769523053099,-1806.43212981,0.00020723,7]
[403762474,1769523053110,-186.235497,0.00020767,2]
[403762475,1769523053120,-186.235497,0.00020767,2]
[403762476,1769523053129,-151.0,0.00020767,2]
[403762477,1769523053139,-186.235497,0.00020767,2]
[403762478,1769523053149,-151.0,0.00020767,2]
[403762479,1769523053159,-186.235497,0.00020767,2]
[403762480,1769523053170,-151.0,0.00020767,2]
[403762481,1769523053180,-364.318764,0.00020767,2]
[403762482,1769523053189,-364.318764,0.00020767,2]
[403762483,1769523053199,-364.318764,0.00020767,2]
[403762485,1769523053209,-364.318764,0.00020767,2]
[403762486,1769523053219,-491.197121,0.00020767,2]
[403762487,1769523053228,-491.197121,0.00020767,2]
[403762490,1769523053412,-491.197121,0.00020767,2]
[403762491,1769523053425,-491.197121,0.00020767,2]
[403762492,1769523053435,-5775.99532027,0.00020767,2]
[403762493,1769523053448,-2641.24690373,0.00020767,2]
[403762494,1769523053457,-1284.69138765,0.00020767,2]
[403762495,1769523053469,-7132.55083635,0.00020767,2]
[403762496,1769523053478,-151.0,0.00020767,2]
[403762497,1769523053488,-8417.242224,0.00020767,2]
[403762498,1769523053498,-151.0,0.00020767,2]
[403762500,1769523053508,-8417.242224,0.00020767,2]
[403762501,1769523053518,-299.641432,0.00020767,2]
[403762502,1769523053528,-250.0,0.000208,10]
[403762503,1769523053539,-168.0,0.00020808,2]
[403762504,1769523053549,-168.0,0.00020813,2]
[403762505,1769523053559,-168.0,0.00020894,2]
[403762506,1769523053569,-256.77499763,0.000209,2]
[403762507,1769523053579,-250.0,0.000209,10]
[403762508,1769523053590,-4339.6,0.00020946,2]
[403762509,1769523053600,-20125.42858216,0.00020999,3]
[403762511,1769523053684,-301.1433787,0.00016223,2]
[403762512,1769523053695,-424.55633344,0.00020999,3]
[403763734,1769523243764,255.4,0.0002,120]
[403763738,1769523263654,500.0,0.00035,120]
[403763801,1769523495623,500.0,0.00034903,120]
[403763805,1769523498911,500.0,0.00034903,120]
[403763806,1769523521028,173.0,0.00034903,120]
[403763956,1769523878996,-3499.263772,0.00011866,2]
[403763957,1769523879140,-10000.01,0.00011866,2]
[403763959,1769523881510,-10000.01,0.00011866,2]
[403763960,1769523881648,-10000.01,0.00011866,2]
[403763963,1769523887621,-3805.2936537,0.00011866,2]
[403763991,1769523953115,-151.29616244,0.00012329,2]
[403764005,1769524015882,10000.01,0.00011489,2]
[403764006,1769524015905,5821.7794506,0.00011489,2]
[403764014,1769524203431,500.94864603,0.00034919,120]
[403764089,1769524236776,-5000.0,0.00012205,2]
[403764091,1769524236786,-592.0,0.00012205,2]
[403764094,1769524236796,-300.0,0.00012327,2]
[403764095,1769524236805,-300.0,0.00012327,2]
[403764097,1769524236815,-300.0,0.00012327,2]
[403764100,1769524236824,-1200.0,0.00012327,2]
[403764101,1769524236833,-286.5314506,0.00012328,2]
[403764104,1769524236842,-199.70371142,0.00012328,2]
[403764106,1769524236852,-402.73508493,0.00012328,2]
[403764107,1769524236862,-438.15383756,0.00012329,2]
[403764109,1769524236871,-491.21,0.00012329,2]
[403764111,1769524236880,-409.34,0.00012329,2]
[403764113,1769524236889,-341.12,0.00012329,2]
[403764116,1769524236898,-284.27,0.00012329,2]
[403764118,1769524236908,-236.89,0.00012329,2]
[403764120,1769524236916,-592.23,0.00012329,2]
[403764121,1769524236925,-884.17,0.00012329,2]
[403764124,1769524236935,-736.81,0.00012329,2]
[403764126,1769524236944,-614.01,0.00012329,2]
[403764128,1769524236954,-511.67,0.00012329,2]
[403764129,1769524236963,-426.39,0.00012329,2]
[403764131,1769524236974,-355.33,0.00012329,2]
[403764133,1769524236983,-50000.0,0.00012329,2]
[403764135,1769524236992,-296.11,0.00012329,2]
[403764137,1769524237001,-246.75,0.00012329,2]
[403764139,1769524237010,-205.63,0.00012329,2]
[403764141,1769524237021,-171.36,0.00012329,2]
[403764143,1769524237030,-856.81,0.00012329,2]
[403764144,1769524237039,-87082.80451229,0.0001239,2]
[403764145,1769524237050,-988.57473205,0.0001239,2]
[403764146,1769524237062,-1543.16857932,0.0001239,2]
[403764150,1769524238027,-500.0,0.00012327,2]
[403764151,1769524238037,-500.0,0.00012327,2]
[403764152,1769524238046,-220.89476502,0.00012327,2]
[403764153,1769524238058,-224.51037204,0.00012327,2]
[403764154,1769524238067,-500.0,0.00012327,2]
[403764155,1769524238076,-500.0,0.00012327,2]
[403764156,1769524238086,-500.0,0.00012327,2]
[403764157,1769524238095,-500.0,0.00012327,2]
[403764158,1769524238104,-500.0,0.00012327,2]
[403764159,1769524238113,-500.0,0.00012327,2]
[403764160,1769524238122,-500.0,0.00012327,2]
[403764161,1769524238132,-500.0,0.00012327,2]
[403764162,1769524238141,-500.0,0.00012327,2]
[403764163,1769524238151,-192.39720087,0.00012327,2]
[403764164,1769524238161,-500.0,0.00012327,2]
[403764165,1769524238170,-500.0,0.00012327,2]
[403764166,1769524238180,-259.10203048,0.00012327,2]
[403764167,1769524238189,-500.0,0.00012327,2]
[403764168,1769524238198,-500.0,0.00012327,2]
[403764169,1769524238207,-500.0,0.00012327,2]
[403764170,1769524238217,-500.0,0.00012327,2]
[403764171,1769524238227,-266.25453486,0.00012327,2]
[403764172,1769524238236,-500.0,0.00012327,2]
[403764173,1769524238245,-500.0,0.00012327,2]
[403764174,1769524238254,-500.0,0.00012327,2]
[403764175,1769524238263,-500.0,0.00012327,2]
[403764176,1769524238274,-500.0,0.00012327,2]
[403764177,1769524238283,-500.0,0.00012327,2]
[403764178,1769524238294,-500.0,0.00012327,2]
[403764179,1769524238303,-500.0,0.00012327,2]
[403764180,1769524238312,-500.0,0.00012327,2]
[403764181,1769524238321,-500.0,0.00012327,2]
[403764182,1769524238331,-500.0,0.00012327,2]
[403764183,1769524238340,-500.0,0.00012327,2]
[403764184,1769524238349,-500.0,0.00012327,2]
[403764185,1769524238359,-500.0,0.00012327,2]
[403764186,1769524238368,-500.0,0.00012327,2]
[403764187,1769524238378,-500.0,0.00012327,2]
[403764188,1769524238387,-500.0,0.00012327,2]
[403764189,1769524238396,-500.0,0.00012327,2]
[403764190,1769524238405,-500.0,0.00012327,2]
[403764191,1769524238570,-500.0,0.00012327,2]
[403764192,1769524238580,-500.0,0.00012327,2]
[403764193,1769524238590,-500.0,0.00012327,2]
[403764194,1769524238600,-500.0,0.00012327,2]
[403764195,1769524238609,-500.0,0.00012327,2]
[403764196,1769524238619,-500.0,0.00012327,2]
[403764197,1769524238628,-500.0,0.00012327,2]
[403764198,1769524238637,-500.0,0.00012327,2]
[403764199,1769524238648,-500.0,0.00012327,2]
[403764200,1769524238657,-500.0,0.00012327,2]
[403764201,1769524238667,-500.0,0.00012327,2]
[403764202,1769524238682,-500.0,0.00012327,2]
[403764203,1769524238695,-500.0,0.00012327,2]
[403764204,1769524238705,-500.0,0.00012327,2]
[403764205,1769524238715,-500.0,0.00012327,2]
[403764206,1769524238726,-500.0,0.00012327,2]
[403764207,1769524238735,-500.0,0.00012327,2]
[403764208,1769524238744,-500.0,0.00012327,2]
[403764209,1769524238754,-500.0,0.00012327,2]
[403764210,1769524238765,-500.0,0.00012327,2]
[403764211,1769524238775,-500.0,0.00012327,2]
[403764212,1769524238784,-500.0,0.00012327,2]
[403764213,1769524238794,-500.0,0.00012327,2]
[403764214,1769524238803,-500.0,0.00012327,2]
[403764215,1769524238812,-500.0,0.00012327,2]
[403764216,1769524238822,-500.0,0.00012327,2]
[403764217,1769524238831,-207.22298888,0.00012327,2]
[403764218,1769524238841,-500.0,0.00012327,2]
[403764219,1769524238850,-500.0,0.00012327,2]
[403764220,1769524238859,-500.0,0.00012327,2]
[403764221,1769524238869,-500.0,0.00012327,2]
[403764222,1769524238878,-500.0,0.00012327,2]
[403764223,1769524238888,-500.0,0.00012327,2]
[403764224,1769524238897,-500.0,0.00012327,2]
[403764225,1769524238906,-500.0,0.00012327,2]
[403764226,1769524238915,-500.0,0.00012327,2]
[403764227,1769524238924,-500.0,0.00012327,2]
[403764228,1769524238933,-500.0,0.00012327,2]
[403764229,1769524238943,-500.0,0.00012327,2]
[403764230,1769524238951,-500.0,0.00012327,2]
[403764231,1769524238961,-500.0,0.00012327,2]
[403764232,1769524238970,-500.0,0.00012327,2]
[403764233,1769524238981,-500.0,0.00012327,2]
[403764234,1769524238991,-500.0,0.00012327,2]
[403764235,1769524239000,-500.0,0.00012327,2]
[403764236,1769524239009,-500.0,0.00012327,2]
[403764237,1769524239019,-500.0,0.00012327,2]
[403764238,1769524239028,-500.0,0.00012327,2]
[403764239,1769524239037,-500.0,0.00012327,2]
[403764240,1769524239046,-500.0,0.00012327,2]
[403764241,1769524239055,-500.0,0.00012327,2]
[403764242,1769524239064,-500.0,0.00012327,2]
[403764243,1769524239074,-500.0,0.00012327,2]
[403764244,1769524239083,-500.0,0.00012327,2]
[403764245,1769524239092,-910385.45217634,0.0001239,2]
[403764246,1769524239101,-343.18734587,0.00012409,2]
[403764247,1769524239111,-404.65,0.000125,2]
[403764248,1769524239120,-300.0,0.00012743,2]
[403764249,1769524239129,-300.0,0.00012743,2]
[403764250,1769524239139,-300.0,0.00012743,2]
[403764251,1769524239148,-300.0,0.00012743,2]
[403764252,1769524239157,-300.0,0.00012743,2]
[403764253,1769524239166,-300.0,0.00012743,2]
[403764254,1769524239175,-300.0,0.00012743,2]
[403764255,1769524239185,-300.0,0.00012743,2]
[403764256,1769524239194,-300.0,0.00012743,2]
[403764257,1769524239204,-300.0,0.00012743,2]
[403764258,1769524239213,-300.0,0.00012743,2]
[403764259,1769524239223,-300.0,0.00012743,2]
[403764260,1769524239232,-300.0,0.00012743,2]
[403764261,1769524239242,-300.0,0.00012743,2]
[403764262,1769524239251,-300.0,0.00012743,2]
[403764263,1769524239261,-600.0,0.00012743,2]
[403764264,1769524239272,-8955.13700653,0.000129,2]
[403764265,1769524239282,-500.0,0.00013273,2]
[403764266,1769524239292,-500.0,0.00013273,2]
[403764267,1769524239301,-586.29021538,0.00013273,2]
[403764268,1769524239310,-500.0,0.00013273,2]
[403764269,1769524239320,-505.3906654,0.00013273,2]
[403764270,1769524239329,-500.0,0.00013273,2]
[403764271,1769524239339,-500.0,0.00013273,2]
[403764272,1769524239348,-500.0,0.00013273,2]
[403764273,1769524239357,-500.0,0.00013273,2]
[403764274,1769524239366,-500.0,0.00013273,2]
[403764275,1769524239375,-500.0,0.00013273,2]
[403764276,1769524239386,-619.57314068,0.00013273,2]
[403764277,1769524239395,-500.0,0.00013273,2]
[403764278,1769524239405,-500.0,0.00013273,2]
[403764279,1769524239414,-500.0,0.00013273,2]
[403764280,1769524239423,-500.0,0.00013273,2]
[403764281,1769524239432,-500.0,0.00013273,2]
[403764282,1769524239441,-500.0,0.00013273,2]
[403764283,1769524239450,-500.0,0.00013273,2]
[403764284,1769524239458,-500.0,0.00013273,2]
[403764285,1769524239467,-500.0,0.00013273,2]
[403764286,1769524239477,-500.0,0.00013273,2]
[403764287,1769524239486,-500.0,0.00013273,2]
[403764288,1769524239495,-500.0,0.00013273,2]
[403764289,1769524239504,-500.0,0.00013273,2]
[403764290,1769524239513,-500.0,0.00013273,2]
[403764291,1769524239523,-488.50652582,0.00013273,2]
[403764292,1769524239532,-500.0,0.00013273,2]
[403764293,1769524239540,-500.0,0.00013273,2]
[403764294,1769524239550,-500.0,0.00013273,2]
[403764295,1769524239559,-500.0,0.00013273,2]
[403764296,1769524239567,-500.0,0.00013273,2]
[403764297,1769524239576,-500.0,0.00013273,2]
[403764298,1769524239585,-500.0,0.00013273,2]
[403764299,1769524239594,-500.0,0.00013273,2]
[403764300,1769524239603,-500.0,0.00013273,2]
[403764301,1769524239612,-500.0,0.00013273,2]
[403764302,1769524239621,-500.0,0.00013273,2]
[403764303,1769524239630,-500.0,0.00013273,2]
[403764304,1769524239639,-500.0,0.00013273,2]
[403764305,1769524239649,-420.0,0.00013528,2]
[403764306,1769524239658,-901.0,0.00013559,2]
[403764307,1769524239667,-300.0,0.00013673,2]
[403764308,1769524239679,-932.034582,0.00013699,2]
[403764309,1769524239688,-26646.7941763,0.00013699,2]
[403764310,1769524239697,-500.0,0.00013699,2]
[403764311,1769524239706,-500.0,0.00013699,2]
[403764312,1769524239715,-500.0,0.00013699,2]
[403764313,1769524239727,-500.81049976,0.00013699,2]
[403764314,1769524239736,-500.0,0.00013699,2]
[403764315,1769524239745,-567.35253141,0.00013699,2]
[403764316,1769524239757,-500.0,0.00013699,2]
[403764318,1769524239766,-500.69178235,0.00013699,2]
[403764319,1769524239776,-500.0,0.00013699,2]
[403764320,1769524239785,-507.15850376,0.00013699,2]
[403764321,1769524239794,-500.6948387,0.00013699,2]
[403764322,1769524239803,-500.74038109,0.00013699,2]
[403764323,1769524239812,-220.8942339,0.00013699,2]
[403764324,1769524239821,-500.2256561,0.00013699,2]
[403764326,1769524239830,-500.0,0.00013699,2]
[403764327,1769524239839,-165.58700471,0.00013699,2]
[403764328,1769524239849,-500.0,0.00013699,2]
[403764329,1769524239858,-500.0,0.00013699,2]
[403764330,1769524239866,-500.0,0.00013699,2]
[403764331,1769524239876,-500.0,0.00013699,2]
[403764332,1769524239885,-194.72932748,0.00013699,2]
[403764334,1769524239894,-500.0,0.00013699,2]
[403764335,1769524239903,-500.0,0.00013699,2]
[403764336,1769524239912,-500.0,0.00013699,2]
[403764337,1769524239921,-500.0,0.00013699,2]
[403764338,1769524239931,-526.45505483,0.00013699,2]
[403764339,1769524239941,-299.9295039,0.00013699,2]
[403764340,1769524239949,-500.56709487,0.00013699,2]
[403764341,1769524239958,-502.14185001,0.00013699,2]
[403764342,1769524239968,-500.0,0.00013699,2]
[403764343,1769524239977,-500.24926867,0.00013699,2]
[403764344,1769524239987,-501.93006265,0.00013699,2]
[403764345,1769524239996,-500.0,0.00013699,2]
[403764346,1769524240005,-160.98586548,0.00013699,2]
[403764347,1769524240013,-507.6640978,0.00013699,2]
[403764348,1769524240023,-500.0,0.00013699,2]
[403764349,1769524240032,-500.0,0.00013699,2]
[403764350,1769524240040,-500.0,0.00013699,2]
[403764351,1769524240049,-500.0,0.00013699,2]
[403764352,1769524240057,-500.0,0.00013699,2]
[403764353,1769524240066,-158.03248936,0.00013699,2]
[403764354,1769524240076,-500.65001385,0.00013699,2]
[403764355,1769524240085,-500.0,0.00013699,2]
[403764356,1769524240095,-158.38045043,0.00013699,2]
[403764357,1769524240105,-500.0,0.00013699,2]
[403764358,1769524240114,-500.0,0.00013699,2]
[403764359,1769524240123,-500.0,0.00013699,2]
[403764360,1769524240132,-500.0,0.00013699,2]
[403764361,1769524240141,-500.0,0.00013699,2]
[403764362,1769524240152,-322.65682376,0.00013699,2]
[403764363,1769524240161,-212.6308883,0.00013821,2]
[403764364,1769524240170,-1000.0,0.00013821,2]
[403764365,1769524240180,-1000.0,0.00013821,2]
[403764366,1769524240189,-1000.0,0.00013821,2]
[403764367,1769524240200,-1000.0,0.00013821,2]
[403764368,1769524240210,-1000.0,0.00013821,2]
[403764369,1769524240219,-1000.0,0.00013821,2]
[403764370,1769524240229,-720.0,0.00014017,2]
[403764371,1769524240238,-600.0,0.00014221,2]
[403764372,1769524240247,-339.76894093,0.00014247,2]
[403764373,1769524240256,-500.0,0.00014247,2]
[403764374,1769524240266,-1000.0,0.00014247,2]
[403764375,1769524240276,-1000.0,0.00014247,2]
[403764376,1769524240285,-1000.0,0.00014247,2]
[403764377,1769524240294,-1000.0,0.00014247,2]
[403764378,1769524240303,-1500.0,0.00014368,2]
[403764379,1769524240312,-1500.0,0.00014368,2]
[403764380,1769524240321,-1500.0,0.00014368,2]
[403764381,1769524240331,-1500.0,0.00014368,2]
[403764382,1769524240340,-1500.0,0.00014368,2]
[403764383,1769524240350,-404.96106813,0.00014409,2]
[403764384,1769524240359,-900.0,0.00014768,2]
[403764385,1769524240368,-722.66874227,0.00014795,2]
[403764386,1769524240377,-1500.0,0.00014795,2]
[403764387,1769524240386,-1000.0,0.00014795,2]
[403764388,1769524240395,-587.0,0.00014845,2]
[403764389,1769524240403,-2000.0,0.00014916,2]
[403764390,1769524240412,-2000.0,0.00014916,2]
[403764392,1769524240421,-451.8102882,0.00014916,2]
[403764393,1769524240431,-2000.0,0.00014916,2]
[403764394,1769524240439,-2000.0,0.00014916,2]
[403764395,1769524240448,-3453.39360763,0.0001496,2]
[403764396,1769524240457,-5000.0,0.00015,2]
[403764397,1769524240466,-1837.9324731,0.00015,2]
[403764398,1769524240476,-1374.32636914,0.00015,2]
[403764399,1769524240486,-274.46400997,0.0001515,20]
[403764400,1769524240495,-1200.0,0.00015316,2]
[403764401,1769524240504,-2000.0,0.00015342,2]
[403764402,1769524240514,-200.0,0.00015399,2]
[403764403,1769524240523,-160.0,0.00015399,2]
[403764404,1769524240532,-588.44180529,0.000154,2]
[403764405,1769524240541,-730479.1855924,0.000154,2]
[403764406,1769524240550,-864.0,0.00015419,2]
[403764407,1769524240559,-8955.13700649,0.00015455,2]
[403764408,1769524240568,-500.0,0.00015464,2]
[403764409,1769524240577,-500.0,0.00015464,2]
[403764410,1769524240586,-2000.0,0.00015464,2]
[403764411,1769524240598,-2500.0,0.00015464,2]
[403764412,1769524240608,-197.41,0.00015585,3]
[403764413,1769524240617,-1518.12397634,0.00015864,2]
[403764414,1769524240626,-615.71955138,0.0001589,2]
[403764415,1769524240635,-505.19880803,0.00015955,2]
[403764416,1769524240644,-828.85776734,0.00016012,2]
[403764417,1769524240653,-250.0,0.00016127,2]
[403764418,1769524240662,-823.0,0.00016292,2]
[403764419,1769524240671,-466.73479038,0.00016409,2]
[403764420,1769524240682,-909.35785446,0.00016525,2]
[403764421,1769524240693,-394.82,0.00016955,3]
[403764422,1769524240702,-1000.0,0.0001696,2]
[403764423,1769524240712,-1616.63618571,0.00017096,2]
[403764424,1769524240722,-8657.46981776,0.000175,3]
[403764425,1769524240734,-210.22295055,0.000176,2]
[403764426,1769524240744,-2525.99404017,0.00017666,2]
[403764427,1769524240758,-200.0,0.00017693,2]
[403764428,1769524240768,-160.0,0.00017693,2]
[403764429,1769524240778,-80528.1759304,0.00017694,2]
[403764430,1769524240787,-1152.0,0.00017879,2]
[403764431,1769524240798,-165.13470443,0.00017999,2]
[403764432,1769524240807,-196973.3767327,0.00018,2]
[403764433,1769524240816,-3637.43141784,0.00018236,2]
[403764434,1769524240826,-528.50851264,0.00018409,2]
[403764435,1769524240835,-1000.0,0.00018657,2]
[403764436,1769524240845,-244.0,0.00018657,2]
[403764437,1769524240854,-8955.13700649,0.00018683,2]
[403764438,1769524240863,-303.10001603,0.000189,2]
[403764439,1769524240873,-303.10001603,0.000189,2]
[403764440,1769524240883,-15430.01538694,0.00019,2]
[403764441,1769524240904,-500.0,0.00012327,2]
[403764442,1769524240913,-294.07130912,0.00019,2]
[403764454,1769524243320,-1006.90622684,0.00012,2]
[403764455,1769524243329,-500.0,0.00012327,2]
[403764456,1769524243339,-452.06100814,0.00012327,2]
[403764457,1769524243378,-47.93899186,0.00012327,2]
[403764458,1769524243387,-434.86100814,0.00012327,2]
[403764459,1769524243498,-65.13899186,0.00012327,2]
[403764460,1769524243507,-500.0,0.00012327,2]
[403764461,1769524243516,-500.0,0.00012327,2]
[403764462,1769524243526,-500.0,0.00012327,2]
[403764463,1769524243535,-500.0,0.00012327,2]
[403764464,1769524243544,-626.28733475,0.00012327,2]
[403764465,1769524243553,-500.0,0.00012327,2]
[403764467,1769524243562,-43.44381551,0.00012327,2]
[403764469,1769524243573,-456.55618449,0.00012327,2]
[403764470,1769524243582,-500.0,0.00012327,2]
[403764471,1769524243591,-500.0,0.00012327,2]
[403764472,1769524243600,-366.06576688,0.00012327,2]
[403764473,1769524243609,-500.0,0.00012327,2]
[403764474,1769524243618,-500.0,0.00012327,2]
[403764475,1769524243627,-500.0,0.00012327,2]
[403764476,1769524243637,-1041.66666667,0.00017165,2]
[403764477,1769524243645,-101.18146386,0.00019,2]
[403764482,1769524246252,-694.87,0.0001691,2]
[403764484,1769524246379,-193.2293389,0.00017715,2]
[403764585,1769524438098,268.23870658,0.00034919,120]
[403764609,1769524716729,520.06865654,0.00034882,120]
[403764615,1769524828487,150.0,0.0003491,120]
[403764634,1769525061727,-590.0,0.00012082,2]
[403764635,1769525076660,-349.74804469,0.00012082,2]
[403764638,1769525222608,301.7506643,0.00011387,2]
[403764639,1769525229718,-497.73982452,0.00012205,2]
[403764640,1769525233131,-592.23,0.00012329,2]
[403764641,1769525233157,-342.75308379,0.00012356,2]
[403764642,1769525233178,-300.0,0.00012384,2]
[403764643,1769525233201,-160.03200619,0.00012385,2]
[403764644,1769525241326,1308.52467446,0.00012205,2]
[403764669,1769525340574,1000.0,0.0003491,120]
[403764675,1769525348100,-1309.37166915,0.00012262,2]
[403764696,1769525386304,10000.01,0.0001,2]
[403764697,1769525386327,10000.01,0.0001,2]
[403764698,1769525386349,10000.01,0.0001,2]
[403764699,1769525386371,10000.01,0.0001,2]
[403764700,1769525386394,540.81,0.0001,2]
[403764717,1769525416170,500.0,0.0003491,120]
[403764718,1769525422217,20000.0,0.000301,120]
[403764735,1769525432008,-1008.25467446,0.00012262,2]
[403764737,1769525432019,-300.23,0.00012262,2]
[403764759,1769525438049,-2382.10365639,0.00012262,2]
[403764760,1769525438059,-593.0,0.00012262,2]
[403764761,1769525438068,-376412.43004343,0.00012285,2]
[403764763,1769525438077,-300.0,0.00012384,2]
[403764764,1769525438086,-455.47233169,0.00012384,2]
[403764765,1769525438095,-500.0,0.00012384,2]
[403764766,1769525438104,-26373.63151615,0.00012385,2]
[403764767,1769525438116,-23626.36848385,0.00012385,2]
[403764768,1769525438125,-500.0,0.00012385,2]